fUSD/lending_fUSD_20260121
["ID","MTS","AMOUNT","RATE_DAILY","PERIOD"]
[402974275,1769020380029,-500.0,0.00055499,120]
[402974276,1769020380110,-500.0,0.00055499,120]
[402974277,1769020380190,-500.0,0.00055499,120]
[402974278,1769020380261,-500.0,0.00055499,120]
[402974279,1769020380323,-500.0,0.00055499,120]
[402974280,1769020380381,-500.0,0.00055499,120]
[402974281,1769020380439,-500.0,0.00055499,120]
[402974282,1769020380498,-500.0,0.00055499,120]
[402974283,1769020380554,-150.0,0.00055499,120]
[402974284,1769020380613,-500.0,0.00055499,120]
[402974285,1769020380668,-161.25613076,0.00055499,120]
[402974286,1769020380719,-500.0,0.00055499,120]
[402974287,1769020380770,-200.49238854,0.00055499,120]
[402974288,1769020380820,-500.00000017,0.00055499,120]
[402974289,1769020380880,-150.0,0.00055499,120]
[402974290,1769020380939,-150.0,0.00055499,120]
[402974291,1769020381006,-200.0,0.00055499,120]
[402974292,1769020381082,-970134.71993814,0.000555,120]
[402974293,1769020381149,-84171.0,0.00055553,120]
[402974294,1769020381212,-238.51616671,0.0005566,120]
[402974295,1769020381277,-797.0,0.00055739,120]
[402974296,1769020381341,-84171.0,0.00055753,120]
[402974297,1769020381404,-151.0,0.000559,120]
[402974298,1769020381466,-153.0,0.000559,120]
[402974299,1769020381532,-84171.0,0.00055953,120]
[402974300,1769020381594,-1000.0,0.00056,120]
[402974301,1769020381653,-200.0,0.00056,120]
[402974302,1769020381716,-18708.80808576,0.00056,120]
[402974303,1769020381774,-84171.0,0.00056153,120]
[402974304,1769020381834,-797.0,0.00056287,120]
[402974305,1769020381893,-84171.0,0.00056353,120]
[402974306,1769020381957,-190.0,0.00056545,120]
[402974307,1769020382026,-84171.0,0.00056553,120]
[402974308,1769020382099,-151.0,0.000566,120]
[402974309,1769020382166,-153.0,0.000566,120]
[402974310,1769020382233,-84171.0,0.00056753,120]
[402974311,1769020382298,-797.0,0.00056835,120]
[402974312,1769020382361,-300.0,0.0005685,120]
[402974313,1769020382426,-12000.0,0.000569,120]
[402974314,1769020382496,-84171.0,0.00056953,120]
[402974315,1769020382584,-150.0,0.0005698,120]
[402974316,1769020382676,-1000.0,0.00057,120]
[402974317,1769020382762,-84171.0,0.00057153,120]
[402974318,1769020382837,-151.0,0.000572,120]
[402974319,1769020382894,-84171.0,0.00057353,120]
[402974320,1769020382951,-409.16,0.00057383,120]
[402974321,1769020383012,-153.0,0.000574,120]
[402976139,1769020569558,155.25,0.00016296,2]
[402976141,1769020569651,155.25,0.00016339,2]
[402980676,1769020820790,166.66,0.00015144,2]
[402980679,1769020820873,166.66,0.00015462,2]
[402980688,1769020821277,166.66,0.00015781,2]
[402980694,1769020821487,166.66,0.000161,2]
[402982426,1769020909314,171.59,0.00012723,2]
[402982432,1769020909560,171.59,0.00014313,2]
[402982438,1769020909796,171.59,0.00015904,2]
[402982861,1769020931533,150.0,0.00015904,2]
[402985148,1769021056603,3556.97,0.00015874,2]
[402985446,1769021073871,200.0,0.00015873,2]
[402986283,1769021124147,186.93,0.00015879,2]
[402987208,1769021195417,2148.06,0.00015976,2]
[402987209,1769021205092,-155.25,0.00016382,2]
[402987210,1769021205111,-195.0,0.00016401,2]
[402987211,1769021205132,-166.66,0.00016419,2]
[402987212,1769021205152,-155.25,0.00016425,2]
[402987213,1769021205171,-155.25,0.00016468,2]
[402987214,1769021205191,-155.25,0.00016511,2]
[402987215,1769021205210,-187.64021808,0.00016538,2]
[402987216,1769021205230,-155.25,0.00016554,2]
[402987217,1769021205250,-155.25,0.00016596,2]
[402987218,1769021205269,-300.0,0.00016637,2]
[402987219,1769021205290,-1200.0,0.00016638,2]
[402987220,1769021205309,-550.0,0.00016638,2]
[402987221,1769021205328,-300.0,0.00016638,2]
[402987222,1769021205347,-1484.44326499,0.00016639,2]
[402987223,1769021271816,848.04,0.00015955,2]
[402987225,1769021354101,1500.0,0.00015955,2]
[402987251,1769021432634,-1200.0,0.00016538,2]
[402987253,1769021432644,-94313.64710128,0.00016539,2]
[402987255,1769021432655,-163733.71740328,0.00016539,2]
[402987257,1769021432666,-16499.55917215,0.00016539,2]
[402987262,1769021432703,-1594.4736441,0.00016539,2]
[402987264,1769021432715,-472.41000001,0.00016539,2]
[402987270,1769021432760,-772.22552744,0.00016539,2]
[402987352,1769021438567,-12293.66111105,0.00016539,2]
[402987353,1769021438585,-710320.30604069,0.00016539,2]
[402987354,1769021438593,-1200.0,0.00016638,2]
[402987355,1769021438601,-8515.54673501,0.00016639,2]
[402987357,1769021438610,-2110.06,0.00016639,2]
[402987358,1769021438619,-999.99,0.00016639,2]
[402987359,1769021438629,-9999.99,0.00016639,2]
[402987360,1769021438638,-299.99,0.00016639,4]
[402987361,1769021438647,-2414.41,0.00016639,2]
[402987362,1769021438656,-150.99,0.00016639,2]
[402987363,1769021438667,-150.99,0.00016639,2]
[402987365,1769021438676,-155.25,0.00016639,2]
[402987366,1769021438685,-500.0,0.00016642,2]
[402987367,1769021438695,-155.25,0.00016682,2]
[402987368,1769021438712,-155.25,0.00016725,2]
[402987369,1769021438724,-166.66,0.00016738,2]
[402987370,1769021438733,-186.93,0.00016761,2]
[402987371,1769021438743,-155.25,0.00016768,2]
[402987372,1769021438753,-150.00018335,0.00016795,2]
[402987373,1769021438762,-155.25,0.00016811,2]
[402987374,1769021438772,-155.25,0.00016854,2]
[402987375,1769021438782,-155.25,0.00016897,2]
[402987376,1769021438792,-151.0,0.00016899,2]
[402987377,1769021438803,-1800.0,0.000169,6]
[402987378,1769021438817,-300.0,0.00016915,2]
[402987379,1769021438826,-1112.7383542,0.00016917,2]
[402987380,1769021438836,-367.11093722,0.00016917,2]
[402987381,1769021438847,-500.0,0.00016917,2]
[402987382,1769021438857,-500.0,0.00016917,2]
[402987383,1769021438867,-500.0,0.00016917,2]
[402987384,1769021438877,-162.91808619,0.00016917,2]
[402987385,1769021438887,-500.0,0.00016917,2]
[402987386,1769021438897,-500.0,0.00016917,2]
[402987387,1769021438907,-500.0,0.00016917,2]
[402987388,1769021438917,-500.0,0.00016917,2]
[402987389,1769021438927,-500.0,0.00016917,2]
[402987390,1769021438938,-500.0,0.00016917,2]
[402987391,1769021438947,-500.0,0.00016917,2]
[402987392,1769021438956,-500.0,0.00016917,2]
[402987393,1769021438966,-767.48,0.00016917,2]
[402987394,1769021438976,-215.453664,0.00016918,2]
[402987395,1769021438986,-152.14592756,0.00016918,2]
[402987396,1769021438997,-4787.84036179,0.00016918,2]
[402987397,1769021439007,-1000.0,0.00016938,2]
[402987398,1769021439016,-155.25,0.00016939,2]
[402987399,1769021439026,-1733.0,0.00016968,2]
[402987400,1769021439036,-155.25,0.00016982,2]
[402987401,1769021439047,-610.0,0.00017002,2]
[402987402,1769021439057,-262.0,0.00017005,2]
[402987403,1769021439070,-500.0,0.00017017,2]
[402987404,1769021439080,-500.0,0.00017017,2]
[402987405,1769021439090,-500.0,0.00017017,2]
[402987406,1769021439099,-500.0,0.00017017,2]
[402987407,1769021439109,-500.0,0.00017017,2]
[402987408,1769021439119,-248.64134578,0.00017017,2]
[402987409,1769021439128,-626.43933453,0.00017017,2]
[402987410,1769021439138,-393.91632422,0.00017017,2]
[402987411,1769021439148,-500.0,0.00017017,2]
[402987412,1769021439158,-538.01091613,0.00017017,2]
[402987413,1769021439168,-384.55932812,0.00017017,2]
[402987414,1769021439178,-488.22794693,0.00017017,2]
[402987415,1769021439187,-500.0,0.00017017,2]
[402987416,1769021439198,-500.0,0.00017017,2]
[402987417,1769021439209,-500.0,0.00017017,2]
[402987418,1769021439218,-500.0,0.00017017,2]
[402987419,1769021439229,-500.0,0.00017017,2]
[402987420,1769021439238,-340.24870417,0.00017017,2]
[402987421,1769021439248,-500.0,0.00017017,2]
[402987422,1769021439263,-1105.4903607,0.00017017,5]
[402987423,1769021439276,-150.0,0.00017017,2]
[402987424,1769021439285,-500.0,0.00017017,2]
[402987425,1769021439297,-500.0,0.00017017,2]
[402987426,1769021439307,-500.0,0.00017017,2]
[402987427,1769021439317,-500.0,0.00017017,2]
[402987428,1769021439327,-500.0,0.00017017,2]
[402987429,1769021439337,-500.0,0.00017017,2]
[402987430,1769021439347,-500.0,0.00017017,2]
[402987431,1769021439357,-319.34433213,0.00017017,2]
[402987432,1769021439367,-500.0,0.00017017,2]
[402987433,1769021439376,-880.624,0.00017018,2]
[402987434,1769021439386,-155.25,0.00017025,2]
[402987435,1769021439396,-4787.84036173,0.00017027,2]
[402987436,1769021439405,-1058.0,0.00017036,2]
[402987437,1769021439415,-155.25,0.00017068,2]
[402987438,1769021439425,-1016.0,0.00017069,2]
[402987439,1769021439434,-215.45366397,0.00017085,2]
[402987440,1769021439444,-870.0,0.00017103,2]
[402987441,1769021439453,-155.25,0.00017111,2]
[402987442,1769021439466,-500.0,0.00017116,2]
[402987443,1769021439476,-500.0,0.00017116,2]
[402987444,1769021439485,-4787.84036173,0.00017136,2]
[402987445,1769021439494,-375.0,0.00017137,2]
[402987446,1769021439504,-717.0,0.00017171,2]
[402987447,1769021439513,-512.65188463,0.00017173,2]
[402987448,1769021439522,-500.0,0.00017173,2]
[402987449,1769021439532,-500.0,0.00017173,2]
[402987450,1769021439543,-500.0,0.00017173,2]
[402987451,1769021439552,-500.0,0.00017173,2]
[402987452,1769021439562,-500.0,0.00017173,2]
[402987453,1769021439572,-458.32981954,0.00017173,2]
[402987454,1769021439582,-500.73210702,0.00017173,2]
[402987455,1769021439591,-601.78347398,0.00017173,2]
[402987456,1769021439600,-500.0,0.00017173,2]
[402987457,1769021439610,-500.0,0.00017173,2]
[402987458,1769021439619,-500.0,0.00017173,2]
[402987459,1769021439629,-337.2193742,0.00017173,2]
[402987460,1769021439638,-500.0,0.00017173,2]
[402987461,1769021439651,-500.0,0.00017173,2]
[402987462,1769021439660,-500.0,0.00017173,2]
[402987463,1769021439670,-500.0,0.00017173,2]
[402987464,1769021439679,-500.0,0.00017173,2]
[402987465,1769021439689,-500.0,0.00017173,2]
[402987466,1769021439698,-500.0,0.00017173,2]
[402987467,1769021439707,-500.0,0.00017173,2]
[402987468,1769021439717,-500.0,0.00017173,2]
[402987469,1769021439726,-502.02252621,0.00017173,2]
[402987470,1769021439736,-767.48,0.00017191,2]
[402987471,1769021439746,-1900.0,0.00017205,2]
[402987472,1769021439755,-154.0,0.00017239,2]
[402987473,1769021439765,-4787.84036173,0.00017245,2]
[402987474,1769021439775,-215.45366397,0.00017252,2]
[402987475,1769021439785,-500.73381826,0.00017273,2]
[402987476,1769021439798,-500.0,0.00017273,2]
[402987477,1769021439811,-500.99033758,0.00017273,2]
[402987478,1769021439821,-500.0,0.00017273,2]
[402987479,1769021439830,-500.0,0.00017273,2]
[402987480,1769021439840,-550.70733566,0.00017273,2]
[402987481,1769021439854,-1532.0,0.00017273,2]
[402987482,1769021439863,-1478.41,0.000173,2]
[402987483,1769021439873,-3600.0,0.000173,6]
[402987484,1769021439885,-1460.0,0.00017307,2]
[402987485,1769021439894,-959.0,0.0001734,2]
[402987486,1769021439904,-1000.0,0.00017344,2]
[402987487,1769021439913,-190.12,0.00017346,2]
[402987488,1769021439923,-4787.84036173,0.00017354,2]
[402987489,1769021439932,-472.0,0.00017374,2]
[402987490,1769021439942,-5400.0,0.000174,6]
[402987491,1769021439951,-1121.0,0.00017408,2]
[402987492,1769021439961,-215.45366397,0.00017419,2]
[402987493,1769021439972,-309.0,0.00017442,2]
[402987494,1769021439982,-4787.84036173,0.00017464,2]
[402987495,1769021439991,-767.48,0.00017465,2]
[402987496,1769021440002,-1521.0,0.00017476,2]
[402987497,1769021440011,-171.59,0.00017494,2]
[402987498,1769021440021,-7300.0,0.000175,6]
[402987499,1769021440034,-937.0,0.0001751,2]
[402987500,1769021440043,-1401.0,0.00017544,2]
[402987501,1769021440055,-500.0,0.00017561,2]
[402987502,1769021440064,-500.0,0.00017561,2]
[402987503,1769021440075,-500.0,0.00017561,2]
[402987504,1769021440084,-501.59915555,0.00017561,2]
[402987505,1769021440094,-4787.84036173,0.00017573,2]
[402987506,1769021440103,-215.45366397,0.00017586,2]
[402987507,1769021440113,-9100.0,0.000176,6]
[402987508,1769021440123,-186.93,0.00017643,2]
[402987509,1769021440132,-4787.84036173,0.00017682,2]
[402987510,1769021440142,-1800.0,0.000177,6]
[402987511,1769021440151,-1000.0,0.00017721,2]
[402987512,1769021440160,-500.0,0.00017721,2]
[402987513,1769021440170,-500.0,0.00017721,2]
[402987514,1769021440179,-874.53885875,0.00017721,2]
[402987515,1769021440189,-1000.0,0.00017721,2]
[402987516,1769021440199,-324.68792933,0.00017721,2]
[402987517,1769021440208,-1001.39035999,0.00017721,2]
[402987518,1769021440219,-372.82575969,0.00017721,2]
[402987519,1769021440229,-1001.85923341,0.00017721,2]
[402987520,1769021440238,-1027.78660944,0.00017721,2]
[402987521,1769021440248,-1000.0,0.00017721,2]
[402987522,1769021440258,-1000.0,0.00017721,2]
[402987523,1769021440267,-1000.0,0.00017721,2]
[402987524,1769021440277,-1000.0,0.00017721,2]
[402987525,1769021440287,-767.48,0.00017739,2]
[402987526,1769021440298,-215.45366397,0.00017753,2]
[402987527,1769021440307,-894.86348981,0.0001776,2]
[402987528,1769021440317,-4787.84036173,0.00017791,2]
[402987529,1769021440326,-1800.0,0.000178,6]
[402987530,1769021440335,-1086.66357325,0.00017821,2]
[402987531,1769021440344,-1284.29468614,0.0001789,2]
[402987532,1769021440354,-2803.9145,0.000179,2]
[402987533,1769021440364,-25000.0,0.000179,3]
[402987534,1769021440373,-10690.13935999,0.000179,3]
[402987535,1769021440382,-194.31477364,0.000179,2]
[402987536,1769021440392,-894.86348981,0.000179,2]
[402987537,1769021440401,-1800.0,0.000179,6]
[402987538,1769021440410,-4787.84036173,0.000179,2]
[402987539,1769021440421,-5616.23362237,0.000179,2]
[402987540,1769021440439,-153.18312806,0.000179,2]
[402987541,1769021440449,-8471.34883117,0.000179,2]
[402987542,1769021440459,-544.583623,0.000179,2]
[402987543,1769021440469,-281.34683604,0.000179,3]
[402987544,1769021440478,-2158.99900859,0.0001791,2]
[402987545,1769021440488,-5616.23362236,0.0001791,2]
[402987546,1769021440498,-544.58362299,0.0001791,2]
[402987547,1769021440508,-215.45366397,0.0001792,2]
[402987548,1769021440517,-2158.99900859,0.0001792,2]
[402987549,1769021440527,-5616.23362236,0.0001792,2]
[402987550,1769021440537,-153.18312806,0.0001792,2]
[402987551,1769021440548,-544.58362299,0.0001792,2]
[402987552,1769021440558,-848.04,0.00017949,2]
[402987553,1769021440568,-1321.57411122,0.0001797,2]
[402987554,1769021440578,-1000.0,0.0001797,2]
[402987555,1769021440587,-694.631145,0.0001797,2]
[402987556,1769021440596,-15055.0,0.00017973,2]
[402987557,1769021440606,-30935.0,0.00017973,2]
[402987558,1769021440615,-1284.29468614,0.0001799,2]
[402987559,1769021440624,-1284.29468614,0.0001799,2]
[402987560,1769021440634,-151.0,0.00017997,2]
[402987561,1769021440643,-151.0,0.00017997,2]
[402987562,1769021440653,-151.0,0.00017997,2]
[402987563,1769021440662,-151.0,0.00017997,2]
[402987564,1769021440671,-300.0,0.00017999,2]
[402987565,1769021440681,-300.0,0.00017999,2]
[402987566,1769021440690,-666.0,0.00017999,2]
[402987567,1769021440700,-300.0,0.00017999,2]
[402987568,1769021440709,-500.0,0.00017999,2]
[402987569,1769021440719,-500.0,0.00017999,2]
[402987570,1769021440728,-500.0,0.00017999,2]
[402987571,1769021440737,-500.0,0.00017999,2]
[402987572,1769021440746,-500.0,0.00017999,2]
[402987573,1769021440756,-500.0,0.00017999,2]
[402987574,1769021440765,-500.0,0.00017999,2]
[402987575,1769021440774,-500.0,0.00017999,2]
[402987576,1769021440783,-500.0,0.00017999,2]
[402987577,1769021440793,-500.0,0.00017999,2]
[402987578,1769021440806,-500.0,0.00017999,2]
[402987579,1769021440818,-206.5350797,0.00017999,2]
[402987580,1769021440828,-300.0,0.00017999,2]
[402987581,1769021440838,-666.0,0.00017999,2]
[402987582,1769021440847,-150.0,0.00017999,2]
[402987583,1769021440859,-150.0,0.00017999,2]
[402987584,1769021440868,-5490670.13676874,0.00018,2]
[402987585,1769021441511,-1750.0,0.00018,2]
[402987586,1769021441522,-6567763.78749165,0.00018,2]
[402987587,1769021441533,-176275.29398471,0.00018,2]
[402987588,1769021441543,-2909.99999999,0.00018,2]
[402987589,1769021441552,-348718.25753605,0.00018,2]
[402987590,1769021441563,-356.68236483,0.00018,2]
[402987591,1769021441574,-644.38,0.00018,2]
[402987592,1769021441741,-2095.592,0.00018,2]
[402987597,1769021443414,-619.94646908,0.00018,2]
[402987598,1769021443554,-5559.86373034,0.00018,2]
[402987599,1769021443565,-447.27153168,0.00018,2]
[402987600,1769021443576,-2999545.84479591,0.00018,2]
[402987601,1769021443612,-13111.85686465,0.00018,2]
[402987602,1769021443623,-1012.68459326,0.00018,2]
[402987603,1769021443694,-3152.19488824,0.00018,2]
[402987611,1769021443933,-10985.06378858,0.00018,2]
[402987612,1769021443945,-852.88467001,0.00018,2]
[402987613,1769021443957,-484.27860401,0.00018,2]
[402987614,1769021443974,-735.24608787,0.00018,2]
[402987616,1769021446369,-3607.02658723,0.00018,2]
[402987617,1769021446399,-23916.42488506,0.00018,2]
[402987640,1769022189852,10000.01,0.0001348,2]
[402987641,1769022189875,4244.03,0.0001348,2]
[402987642,1769022277167,200.0,0.00016235,2]
[402987647,1769022631409,-152.14592756,0.00016376,2]
[402987648,1769022631419,-397.88,0.00016428,2]
[402987649,1769022631428,-397.88,0.00016428,2]
[402987650,1769022631437,-397.88,0.00016428,2]
[402987651,1769022631447,-397.88,0.00016428,2]
[402987652,1769022631456,-382.7386584,0.00016428,2]
[402987653,1769022631467,-15.1413416,0.00016428,2]
[402987654,1769022631477,-456.70470487,0.00016437,2]
[402987655,1769022631489,-743.29529513,0.00016437,2]
[402987656,1769022631498,-250.0,0.00016438,2]
[402987657,1769022631508,-106.70470487,0.00016438,2]
[402987658,1769022631519,-948.3053255,0.00016438,2]
[402987659,1769022631530,-2655.20136658,0.00016438,2]
[402987660,1769022631540,-5417.7789138,0.00016438,2]
[402987661,1769022631552,-92635.46517961,0.00016438,2]
[402987662,1769022631563,-2518.78506904,0.00016438,2]
[402987663,1769022631602,-111539.10565696,0.00016438,2]
[402987664,1769022631613,-928.52587715,0.00016438,2]
[402987665,1769022631624,-13836.33212723,0.00016438,2]
[402987666,1769022631635,-990.97939,0.00016438,2]
[402987667,1769022631647,-2000.0,0.00016438,2]
[402987668,1769022631767,-1703.04317917,0.00016438,2]
[402987669,1769022631778,-609.653476,0.00016438,2]
[402987670,1769022631790,-931.21788998,0.00016438,2]
[402987671,1769022631823,-5213.81017421,0.00016438,2]
[402987672,1769022631834,-1244.11929397,0.00016438,2]
[402987674,1769022637718,-3196.65031194,0.00016438,2]
[402987675,1769022637729,-4176.20288896,0.00016438,2]
[402987693,1769022637936,-4166.94113788,0.00016438,2]
[402987695,1769022637947,-15856.43259735,0.00016438,2]
[402987698,1769022637957,-6003.3091171,0.00016438,2]
[402987700,1769022637970,-933.27304708,0.00016438,2]
[402987702,1769022637981,-704.73467345,0.00016438,2]
[402987704,1769022637992,-11099.83510655,0.00016438,2]
[402987714,1769022638072,-710583.59349562,0.00016438,2]
[402987716,1769022638081,-1751.7628,0.00016439,2]
[402987718,1769022638091,-1200.0,0.00016513,2]
[402987720,1769022638103,-300.0,0.00016513,2]
[402987722,1769022638115,-266.01327061,0.00016514,2]
[402987724,1769022638125,-6684.11407887,0.00016514,2]
[402987726,1769022638135,-7997.38747367,0.00016514,2]
[402987728,1769022638145,-768.02304485,0.00016529,2]
[402987730,1769022638155,-200.0,0.0001653,2]
[402987732,1769022638164,-500.0,0.0001653,2]
[402987734,1769022638175,-1105.4903607,0.00016538,5]
[402987736,1769022638185,-150.0,0.00016538,2]
[402987738,1769022638194,-1000.0,0.00016538,2]
[402987740,1769022638204,-299.99,0.00016538,4]
[402987742,1769022638213,-2414.41,0.00016538,2]
[402987743,1769022638223,-150.99,0.00016538,2]
[402987745,1769022638232,-2110.06,0.00016538,2]
[402987746,1769022638241,-9999.99,0.00016538,2]
[402987747,1769022638251,-500.0,0.00016539,2]
[402987748,1769022638260,-500.0,0.00016539,2]
[402987749,1769022638269,-500.0,0.00016539,2]
[402987750,1769022638279,-319.34433213,0.00016539,2]
[402987751,1769022638288,-343.424,0.00016539,2]
[402987752,1769022638297,-2806.31,0.00016539,2]
[402987753,1769022638306,-767.48,0.00016539,2]
[402987754,1769022638315,-500.0,0.00016539,2]
[402987755,1769022638325,-500.0,0.00016539,2]
[402987756,1769022638334,-500.0,0.00016539,2]
[402987757,1769022638344,-500.0,0.00016539,2]
[402987758,1769022638353,-500.0,0.00016539,2]
[402987759,1769022638362,-150.0,0.00016539,2]
[402987760,1769022638371,-3637.3,0.00016614,2]
[402987761,1769022638380,-150.00017572,0.00016689,2]
[402987762,1769022638389,-767.48,0.00016813,2]
[402987763,1769022638399,-150.0,0.00016824,2]
[402987764,1769022638408,-500.0,0.00016824,2]
[402987765,1769022638417,-500.0,0.00016824,2]
[402987766,1769022638426,-500.0,0.00016824,2]
[402987767,1769022638434,-500.0,0.00016824,2]
[402987768,1769022638443,-500.0,0.00016824,2]
[402987769,1769022638452,-150.0,0.00016824,2]
[402987770,1769022638461,-151.0,0.00016848,2]
[402987771,1769022638471,-150.0,0.00016879,2]
[402987772,1769022638479,-500.0,0.00016879,2]
[402987773,1769022638488,-500.0,0.00016879,2]
[402987774,1769022638498,-500.0,0.00016879,2]
[402987775,1769022638507,-500.0,0.00016879,2]
[402987777,1769022638517,-500.0,0.00016879,2]
[402987779,1769022638527,-2200.0,0.000169,6]
[402987781,1769022638537,-200.0,0.00016934,2]
[402987783,1769022638546,-500.0,0.00016934,2]
[402987785,1769022638556,-500.0,0.00016934,2]
[402987787,1769022638566,-357.1948729,0.00016934,2]
[402987789,1769022638575,-500.0,0.00016934,2]
[402987791,1769022638585,-500.0,0.00016934,2]
[402987793,1769022638595,-500.0,0.00016934,2]
[402987795,1769022638607,-154.37435585,0.00016988,2]
[402987797,1769022638617,-500.0,0.00016988,2]
[402987799,1769022638627,-500.0,0.00016988,2]
[402987801,1769022638638,-500.0,0.00016988,2]
[402987803,1769022638647,-500.0,0.00016988,2]
[402987805,1769022638656,-250.0,0.00017,2]
[402987807,1769022638667,-500.0,0.00017017,2]
[402987809,1769022638677,-500.0,0.00017017,2]
[402987811,1769022638687,-500.0,0.00017017,2]
[402987813,1769022638697,-500.0,0.00017017,2]
[402987815,1769022638706,-500.0,0.00017017,2]
[402987817,1769022638716,-500.0,0.00017017,2]
[402987819,1769022638725,-500.0,0.00017017,2]
[402987820,1769022638735,-500.0,0.00017017,2]
[402987822,1769022638745,-500.0,0.00017043,2]
[402987824,1769022638756,-500.0,0.00017043,2]
[402987827,1769022638767,-500.0,0.00017043,2]
[402987828,1769022638777,-500.0,0.00017043,2]
[402987830,1769022638787,-508.92671197,0.00017078,2]
[402987831,1769022638797,-767.48,0.00017087,2]
[402987833,1769022638807,-200.6,0.00017098,2]
[402987835,1769022638817,-500.0,0.00017098,2]
[402987837,1769022638827,-500.0,0.00017098,2]
[402987838,1769022638837,-500.0,0.00017098,2]
[402987839,1769022638847,-524.0,0.00017124,2]
[402987840,1769022638860,-1852.42,0.00017127,2]
[402987841,1769022638871,-500.0,0.00017153,2]
[402987842,1769022638881,-500.0,0.00017153,2]
[402987843,1769022638891,-500.0,0.00017153,2]
[402987844,1769022638901,-1312.0,0.00017158,2]
[402987845,1769022638911,-500.0,0.00017173,2]
[402987846,1769022638922,-500.0,0.00017173,2]
[402987847,1769022638932,-512.65188463,0.00017173,2]
[402987848,1769022638943,-500.0,0.00017173,2]
[402987849,1769022638952,-500.0,0.00017173,2]
[402987850,1769022638963,-500.0,0.00017173,2]
[402987851,1769022638973,-500.0,0.00017173,2]
[402987852,1769022638983,-500.0,0.00017173,2]
[402987853,1769022638992,-500.0,0.00017173,2]
[402987854,1769022639001,-500.0,0.00017173,2]
[402987855,1769022639011,-500.0,0.00017173,2]
[402987856,1769022639021,-500.0,0.00017173,2]
[402987857,1769022639030,-337.2193742,0.00017173,2]
[402987858,1769022639040,-500.0,0.00017173,2]
[402987859,1769022639050,-458.32981954,0.00017173,2]
[402987860,1769022639061,-500.0,0.00017173,2]
[402987861,1769022639071,-500.0,0.00017173,2]
[402987862,1769022639082,-500.0,0.00017173,2]
[402987863,1769022639092,-500.0,0.00017173,2]
[402987864,1769022639102,-500.0,0.00017173,2]
[402987865,1769022639115,-500.0,0.00017173,2]
[402987866,1769022639124,-500.73210702,0.00017173,2]
[402987867,1769022639134,-500.0,0.00017173,2]
[402987868,1769022639145,-502.02252621,0.00017173,2]
[402987869,1769022639155,-1311.0,0.00017193,2]
[402987870,1769022639164,-500.0,0.00017208,2]
[402987871,1769022639173,-500.0,0.00017208,2]
[402987872,1769022639185,-500.0,0.00017208,2]
[402987873,1769022639194,-1934.0,0.00017227,2]
[402987874,1769022639204,-1689.0,0.00017261,2]
[402987875,1769022639402,-500.0,0.00017262,2]
[402987876,1769022639425,-500.0,0.00017262,2]
[402987877,1769022639434,-589.38461163,0.00017262,2]
[402987878,1769022639444,-500.73381826,0.00017273,2]
[402987879,1769022639453,-500.0,0.00017273,2]
[402987880,1769022639463,-550.70733566,0.00017273,2]
[402987881,1769022639472,-500.0,0.00017273,2]
[402987882,1769022639485,-500.99033758,0.00017273,2]
[402987883,1769022639495,-500.0,0.00017273,2]
[402987884,1769022639504,-500.0,0.00017273,2]
[402987885,1769022639513,-1388.0,0.00017295,2]